[Event "25th European Club Cup Women 2021"]
[Site "Struga"]
[Date "2021.09.21"]
[Round "4.14"]
[White "Cvitan, Ena"]
[Black "Dzagnidze, Nana"]
[Result "0-1"]
[ECO "E49"]
[WhiteElo "2284"]
[BlackElo "2525"]
[Annotator "ChessBase"]
[PlyCount "110"]
[EventDate "2021.09.18"]
[EventType "team-tourn"]
[EventCountry "MKD"]
[SourceTitle "playchess.com"]
[Source "ChessBase"]
[SourceQuality "1"]
[TimeControl "40/5400+30:1800+30"]

1. d4 {[%emt 0:00:11]} Nf6 {[%emt 0:00:11]} 2. c4 {[%emt 0:00:07]} e6 {[%emt 0:
00:07]} 3. Nc3 {[%emt 0:00:06]} Bb4 {[%emt 0:00:05]} 4. e3 {[%emt 0:00:10]} O-O
{[%emt 0:00:22]} 5. Bd3 {[%emt 0:00:19]} c5 {[%emt 0:00:47]} 6. Nge2 {[%emt 0:
00:25]} d5 {[%emt 0:02:36]} 7. a3 {[%emt 0:03:54]} Bxc3+ {[%emt 0:00:31]} 8.
bxc3 {[%emt 0:00:07]} dxc4 {[%emt 0:03:34]} 9. Bxc4 {[%emt 0:00:08]} Qc7 {
[%emt 0:00:05]} 10. Bd3 {[%emt 0:00:16]} b6 {[%emt 0:00:48]} 11. O-O {[%emt 0:
02:31]} e5 {[%emt 0:15:08]} 12. e4 {[%emt 0:04:18]} cxd4 {[%emt 0:02:07]} 13.
cxd4 {[%emt 0:00:04]} exd4 {[%emt 0:00:58]} 14. Bf4 {[%emt 0:03:02]} Qd7 {
[%emt 0:02:39]} 15. a4 {[%emt 0:09:12]} Ba6 {[%emt 0:22:25]} 16. a5 {[%emt 0:
06:02]} b5 {[%emt 0:08:58]} 17. Qb1 {[%emt 0:12:29]} h6 {[%emt 0:06:43]} 18.
Rd1 {[%emt 0:10:00]} Nc6 {[%emt 0:01:56]} 19. Bxb5 {[%emt 0:02:35]} Bxb5 {
[%emt 0:00:58]} 20. Qxb5 {[%emt 0:00:06]} Rfd8 {[%emt 0:00:15]} 21. Ng3 {
[%emt 0:10:44]} d3 {[%emt 0:02:57]} 22. a6 {[%emt 0:07:32]} Rac8 {[%emt 0:06:
17]} 23. h3 {[%emt 0:02:41]} Qe6 {[%emt 0:03:06]} 24. Rxd3 {[%emt 0:04:19]} Nd4
{[%emt 0:00:51]} 25. Qb1 {[%emt 0:00:57]} Rd7 {[%emt 0:08:42]} 26. Kh2 {
[%emt 0:04:04]} h5 {[%emt 0:03:34]} 27. Ra4 {[%emt 0:04:34]} Rcd8 {[%emt 0:00:
08]} 28. Be3 {[%emt 0:01:20]} Nf3+ {[%emt 0:00:44]} 29. gxf3 {[%emt 0:00:06]}
Rxd3 {[%emt 0:00:04]} 30. Qc2 {[%emt 0:06:56]} g6 {[%emt 0:05:05]} 31. h4 {
[%emt 0:00:24]} R3d6 {[%emt 0:00:51]} 32. Qc7 {[%emt 0:02:38]} Qd7 {[%emt 0:00:
33]} 33. Qxd7 {[%emt 0:00:08]} Nxd7 {[%emt 0:00:02]} 34. Bxa7 {[%emt 0:01:05]}
Ra8 {[%emt 0:00:02]} 35. Be3 {[%emt 0:01:10]} Rdxa6 {[%emt 0:00:13]} 36. Rxa6 {
[%emt 0:00:09]} Rxa6 {[%emt 0:00:02]} 37. Kg2 {[%emt 0:00:10]} Ne5 {[%emt 0:00:
14]} 38. Bd4 {[%emt 0:01:13]} Nd3 {[%emt 0:00:06]} 39. Ne2 {[%emt 0:01:34]} Ra2
{[%emt 0:00:06]} 40. Ng1 {[%emt 0:00:00]} f5 {[%emt 0:00:00]} 41. Be3 {[%emt 0:
06:12]} Ra4 {[%emt 0:06:44]} 42. exf5 {[%emt 0:06:29]} gxf5 {[%emt 0:00:07]}
43. Bg5 {[%emt 0:00:59]} f4 {[%emt 0:04:51]} 44. Kf1 {[%emt 0:00:48]} Kf7 {
[%emt 0:00:13]} 45. Nh3 {[%emt 0:02:04]} Ke6 {[%emt 0:02:43]} 46. Ke2 {[%emt 0:
00:15]} Rd4 {[%emt 0:00:03]} 47. Bh6 {[%emt 0:04:47]} Kf5 {[%emt 0:00:40]} 48.
Bg5 {[%emt 0:00:45]} Ne5 {[%emt 0:03:39]} 49. Bh6 {[%emt 0:01:24]} Ra4 {
[%emt 0:00:06]} 50. Bg5 {[%emt 0:00:35]} Ra2+ {[%emt 0:01:01]} 51. Kf1 {
[%emt 0:00:06]} Nxf3 {[%emt 0:00:12]} 52. Bxf4 {[%emt 0:00:51]} Kg4 {[%emt 0:
00:25]} 53. Kg2 {[%emt 0:00:05]} Nxh4+ {[%emt 0:00:14]} 54. Kh2 {[%emt 0:00:04]
} Ra3 {[%emt 0:02:44]} 55. Bg3 {[%emt 0:00:50]} Nf5 {[%emt 0:00:09]} 0-1

[Event "25th European Club Cup Women 2021"]
[Site "Struga"]
[Date "2021.09.21"]
[Round "4.15"]
[White "Cramling, Pia"]
[Black "Urh, Zala"]
[Result "1/2-1/2"]
[ECO "E03"]
[WhiteElo "2455"]
[BlackElo "2234"]
[Annotator "ChessBase"]
[PlyCount "74"]
[EventDate "2021.09.18"]
[EventType "team-tourn"]
[EventCountry "MKD"]
[SourceTitle "playchess.com"]
[Source "ChessBase"]
[SourceQuality "1"]
[TimeControl "40/5400+30:1800+30"]

1. d4 {[%emt 0:00:33]} Nf6 {[%emt 0:00:05]} 2. c4 {[%emt 0:00:45]} e6 {[%emt 0:
00:05]} 3. Nf3 {[%emt 0:00:23]} d5 {[%emt 0:00:40]} 4. g3 {[%emt 0:00:31]} dxc4
{[%emt 0:00:15]} 5. Qa4+ {[%emt 0:00:37]} Nbd7 {[%emt 0:00:25]} 6. Bg2 {
[%emt 0:04:01]} a6 {[%emt 0:00:18]} 7. Qxc4 {[%emt 0:01:36]} b5 {[%emt 0:00:29]
} 8. Qc2 {[%emt 0:10:53]} Bb7 {[%emt 0:00:34]} 9. O-O {[%emt 0:12:01]} c5 {
[%emt 0:01:59]} 10. a4 {[%emt 0:00:59]} Rc8 {[%emt 0:03:18]} 11. axb5 {[%emt 0:
01:31]} axb5 {[%emt 0:00:13]} 12. Qb3 {[%emt 0:05:13]} b4 {[%emt 0:04:07]} 13.
dxc5 {[%emt 0:02:42]} Bxc5 {[%emt 0:02:28]} 14. Be3 {[%emt 0:03:03]} Bd5 {
[%emt 0:08:02]} 15. Qd3 {[%emt 0:00:13]} Qb6 {[%emt 0:05:05]} 16. Bxc5 {
[%emt 0:05:26]} Nxc5 {[%emt 0:01:09]} 17. Qe3 {[%emt 0:00:20]} O-O {[%emt 0:03:
35]} 18. Nbd2 {[%emt 0:00:12]} Rfd8 {[%emt 0:03:43]} 19. h3 {[%emt 0:01:56]} b3
{[%emt 0:17:04]} 20. Rfc1 {[%emt 0:05:45]} Qb4 {[%emt 0:02:09]} 21. Qc3 {
[%emt 0:11:23]} Qb7 {[%emt 0:05:56]} 22. Qa5 {[%emt 0:05:35]} Nce4 {[%emt 0:03:
59]} 23. Nxe4 {[%emt 0:00:45]} Bxe4 {[%emt 0:02:43]} 24. Rxc8 {[%emt 0:02:13]}
Rxc8 {[%emt 0:01:17]} 25. Rd1 {[%emt 0:02:37]} h6 {[%emt 0:02:55]} 26. Ne1 {
[%emt 0:07:49]} Bxg2 {[%emt 0:04:32]} 27. Nxg2 {[%emt 0:00:02]} Rc2 {[%emt 0:
00:26]} 28. Qa3 {[%emt 0:05:03]} Rxe2 {[%emt 0:14:17]} 29. Rd8+ {[%emt 0:08:48]
} Kh7 {[%emt 0:00:05]} 30. Qf8 {[%emt 0:00:23]} Rxb2 {[%emt 0:00:43]} 31. Qh8+
{[%emt 0:00:25]} Kg6 {[%emt 0:00:01]} 32. Rd1 {[%emt 0:00:57]} Rxf2 {[%emt 0:
08:43]} 33. Kxf2 {[%emt 0:00:51]} Qa7+ {[%emt 0:00:38]} 34. Kf3 {[%emt 0:01:00]
} Qb7+ {[%emt 0:00:20]} 35. Kf2 {[%emt 0:00:09]} Qa7+ {[%emt 0:00:03]} 36. Kf3
{[%emt 0:01:07]} Qb7+ {[%emt 0:00:13]} 37. Kf2 {[%emt 0:00:08]} Qa7+ {[%emt 0:
00:30]} 1/2-1/2

[Event "25th European Club Cup Women 2021"]
[Site "Struga"]
[Date "2021.09.21"]
[Round "4.16"]
[White "Janzelj, Lara"]
[Black "Paehtz, Elisabeth"]
[Result "0-1"]
[ECO "A41"]
[WhiteElo "2186"]
[BlackElo "2465"]
[Annotator "ChessBase"]
[PlyCount "102"]
[EventDate "2021.09.18"]
[EventType "team-tourn"]
[EventCountry "MKD"]
[SourceTitle "playchess.com"]
[Source "ChessBase"]
[SourceQuality "1"]
[TimeControl "40/5400+30:1800+30"]

1. d4 {[%emt 0:00:03]} d6 {[%emt 0:00:02]} 2. Nf3 {[%emt 0:00:14]} g6 {[%emt 0:
00:15]} 3. c4 {[%emt 0:00:26]} Bg7 {[%emt 0:00:08]} 4. Nc3 {[%emt 0:00:08]} e5
{[%emt 0:00:03]} 5. g3 {[%emt 0:06:59]} Nc6 {[%emt 0:06:02]} 6. dxe5 {[%emt 0:
04:03]} Nxe5 {[%emt 0:00:04]} 7. Nxe5 {[%emt 0:08:34]} Bxe5 {[%emt 0:00:03]} 8.
Bg2 {[%emt 0:00:20]} Ne7 {[%emt 0:00:09]} 9. O-O {[%emt 0:03:16]} O-O {[%emt 0:
01:51]} 10. Bg5 {[%emt 0:02:35]} c6 {[%emt 0:09:48]} 11. Ne4 {[%emt 0:03:58]}
f6 {[%emt 0:06:58]} 12. Bh6 {[%emt 0:00:58]} Rf7 {[%emt 0:00:02]} 13. Rb1 {
[%emt 0:14:10]} d5 {[%emt 0:29:38]} 14. cxd5 {[%emt 0:03:52]} cxd5 {[%emt 0:00:
04]} 15. Nc5 {[%emt 0:03:22]} Bf5 {[%emt 0:04:02]} 16. Nd3 {[%emt 0:02:28]} Bd4
{[%emt 0:01:01]} 17. Bf4 {[%emt 0:06:37]} g5 {[%emt 0:08:05]} 18. Bd2 {[%emt 0:
00:29]} Qb6 {[%emt 0:01:49]} 19. Qa4 {[%emt 0:02:18]} Bxd3 {[%emt 0:03:46]} 20.
exd3 {[%emt 0:00:19]} Be5 {[%emt 0:02:03]} 21. Rfe1 {[%emt 0:02:35]} Qc6 {
[%emt 0:13:44]} 22. Qb3 {[%emt 0:02:15]} Rd8 {[%emt 0:01:13]} 23. Ba5 {[%emt 0:
03:37]} b6 {[%emt 0:00:29]} 24. Bb4 {[%emt 0:01:48]} Nf5 {[%emt 0:01:09]} 25.
Rbc1 {[%emt 0:02:01]} Qb5 {[%emt 0:01:45]} 26. a4 {[%emt 0:00:35]} Nd4 {
[%emt 0:02:00]} 27. Qa3 {[%emt 0:01:14]} Qd7 {[%emt 0:00:36]} 28. Bc3 {[%emt 0:
01:02]} Qf5 {[%emt 0:01:36]} 29. Re3 {[%emt 0:03:43]} g4 {[%emt 0:03:22]} 30.
Qb4 {[%emt 0:03:25]} Nc6 {[%emt 0:00:48]} 31. Qb5 {[%emt 0:02:38]} d4 {[%emt 0:
00:09]} 32. Re4 {[%emt 0:01:40]} dxc3 {[%emt 0:00:53]} 33. bxc3 {[%emt 0:00:52]
} Qg5 {[%emt 0:01:02]} 34. Rce1 {[%emt 0:02:03]} Bxc3 {[%emt 0:01:06]} 35. Qc4
{[%emt 0:06:44]} Bxe1 {[%emt 0:00:54]} 36. Rxg4 {[%emt 0:00:02]} Ne5 {[%emt 0:
00:33]} 37. Rxg5+ {[%emt 0:00:04]} fxg5 {[%emt 0:00:02]} 38. Qe6 {[%emt 0:02:
28]} Bxf2+ {[%emt 0:00:05]} 39. Kh1 {[%emt 0:00:01]} Bd4 {[%emt 0:00:18]} 40.
Qh6 {[%emt 0:00:00]} Rg7 {[%emt 0:00:00]} 41. Bd5+ {[%emt 0:02:10]} Kh8 {
[%emt 0:05:52]} 42. Qe6 {[%emt 0:02:57]} Rf7 {[%emt 0:02:01]} 43. Bg2 {[%emt 0:
32:57]} Kg7 {[%emt 0:00:33]} 44. h4 {[%emt 0:00:00]} g4 {[%emt 0:01:23]} 45. h5
{[%emt 0:00:00]} h6 {[%emt 0:01:28]} 46. Kh2 {[%emt 0:00:00]} Rdd7 {[%emt 0:01:
31]} 47. Qb3 {[%emt 0:00:00]} Rf5 {[%emt 0:01:47]} 48. Be4 {[%emt 0:00:00]}
Rf2+ {[%emt 0:01:18]} 49. Bg2 {[%emt 0:00:00]} Rc7 {[%emt 0:00:47]} 50. Qa3 {
[%emt 0:00:00]} Rcc2 {[%emt 0:01:21]} 51. Qe7+ {[%emt 0:00:00]} Nf7 {[%emt 0:
00:12]} 0-1

[Event "25th European Club Cup Women 2021"]
[Site "Struga"]
[Date "2021.09.22"]
[Round "5.1"]
[White "Unuk, Laura"]
[Black "Bivol, Alina"]
[Result "1-0"]
[ECO "D35"]
[WhiteElo "2389"]
[BlackElo "2385"]
[Annotator "NA"]
[PlyCount "67"]
[EventDate "2021.09.18"]
[EventType "team-tourn"]
[EventCountry "MKD"]
[SourceTitle "playchess.com"]
[Source "ChessBase"]
[SourceQuality "1"]
[TimeControl "40/5400+30:1800+30"]

1. d4 {[%emt 0:00:05]} d5 {[%emt 0:00:14]} 2. c4 {[%emt 0:00:14]} e6 {[%emt 0:
00:06]} 3. Nc3 {[%emt 0:00:18]} Nf6 {[%emt 0:00:07]} 4. cxd5 {[%emt 0:00:49]}
exd5 {[%emt 0:00:09]} 5. Bg5 {[%emt 0:00:06]} Be7 {[%emt 0:00:05]} 6. e3 {
[%emt 0:00:10]} c6 {[%emt 0:00:05]} 7. Bd3 {[%emt 0:00:25]} Nbd7 {[%emt 0:00:
08]} 8. h3 {[%emt 0:01:03]} g6 {[%emt 0:07:36]} 9. Bh6 {[%emt 0:05:42]} Bf8 {
[%emt 0:01:02]} 10. Bxf8 {[%emt 0:04:21]} Kxf8 {[%emt 0:02:43]} 11. b4 {
[%emt 0:00:30]} Ne8 {[%emt 0:00:37]} 12. Nf3 {[%emt 0:09:51]} Nd6 {[%emt 0:00:
28]} 13. O-O {[%emt 0:01:07]} a6 {[%emt 0:06:34]} 14. a4 {[%emt 0:00:43]} g5 {
[%emt 0:01:58]} 15. Ne5 {[%emt 0:13:00]} h5 {[%emt 0:00:25]} 16. f4 {[%emt 0:
00:34]} g4 {[%emt 0:00:31]} 17. Kh2 {[%emt 0:10:20]} Nf6 {[%emt 0:03:33]} 18.
f5 {[%emt 0:05:57]} Bd7 {[%emt 0:02:13]} 19. Rf4 {[%emt 0:04:13]} Qc7 {[%emt 0:
00:36]} 20. Qe1 {[%emt 0:01:36]} Rh6 {[%emt 0:07:38]} 21. Qh4 {[%emt 0:05:58]}
Kg7 {[%emt 0:01:24]} 22. Rc1 {[%emt 0:02:09]} Qd8 {[%emt 0:06:55]} 23. Kg1 {
[%emt 0:04:09]} gxh3 {[%emt 0:05:37]} 24. gxh3 {[%emt 0:00:54]} Kh7 {[%emt 0:
02:36]} 25. Kh1 {[%emt 0:01:20]} b6 {[%emt 0:14:18]} 26. Rg1 {[%emt 0:02:34]}
Ra7 {[%emt 0:00:42]} 27. Rf2 {[%emt 0:13:11]} Qf8 {[%emt 0:04:07]} 28. Rg5 {
[%emt 0:03:47]} Kh8 {[%emt 0:03:59]} 29. Rfg2 {[%emt 0:00:53]} Be8 {[%emt 0:04:
27]} 30. Ne2 {[%emt 0:04:05]} c5 {[%emt 0:08:34]} 31. bxc5 {[%emt 0:00:38]}
bxc5 {[%emt 0:00:12]} 32. Nf4 {[%emt 0:00:16]} Ra8 {[%emt 0:00:59]} 33. Nxd5 {
[%emt 0:01:26]} Nxd5 {[%emt 0:08:44]} 34. Rxh5 {[%emt 0:00:10]} 1-0

[Event "25th European Club Cup Women 2021"]
[Site "Struga"]
[Date "2021.09.22"]
[Round "5.2"]
[White "Heinemann, Josefine"]
[Black "Cvitan, Ena"]
[Result "*"]
[ECO "B10"]
[WhiteElo "2292"]
[BlackElo "2284"]
[Annotator "NA"]
[PlyCount "66"]
[EventDate "2021.09.18"]
[EventType "team-tourn"]
[EventCountry "MKD"]
[SourceTitle "playchess.com"]
[Source "ChessBase"]
[SourceQuality "1"]
[TimeControl "40/5400+30:1800+30"]

1. e4 {[%emt 0:00:03]} c6 {[%emt 0:00:13]} 2. Nf3 {[%emt 0:00:07]} d5 {[%emt 0:
00:07]} 3. d3 {[%emt 0:00:03]} Qc7 {[%emt 0:00:44]} 4. exd5 {[%emt 0:00:15]}
cxd5 {[%emt 0:00:12]} 5. c4 {[%emt 0:00:06]} Nf6 {[%emt 0:01:28]} 6. Nc3 {
[%emt 0:00:07]} e6 {[%emt 0:00:59]} 7. g3 {[%emt 0:00:09]} a6 {[%emt 0:01:01]}
8. Bf4 {[%emt 0:02:42]} Bd6 {[%emt 0:02:00]} 9. Bxd6 {[%emt 0:01:42]} Qxd6 {
[%emt 0:00:07]} 10. Bg2 {[%emt 0:00:17]} O-O {[%emt 0:04:12]} 11. O-O {[%emt 0:
01:58]} Nc6 {[%emt 0:02:34]} 12. a3 {[%emt 0:05:27]} d4 {[%emt 0:02:00]} 13.
Nb1 {[%emt 0:02:57]} a5 {[%emt 0:01:58]} 14. Nbd2 {[%emt 0:02:14]} e5 {[%emt 0:
02:22]} 15. Re1 {[%emt 0:05:47]} Re8 {[%emt 0:05:21]} 16. Qc2 {[%emt 0:04:37]}
Bf5 {[%emt 0:05:12]} 17. Ng5 {[%emt 0:06:23]} Rac8 {[%emt 0:09:46]} 18. Rab1 {
[%emt 1:04:36]} b6 {[%emt 0:05:48]} 19. Nge4 {[%emt 0:04:38]} Nxe4 {[%emt 0:03:
17]} 20. Nxe4 {[%emt 0:00:09]} Bxe4 {[%emt 0:00:39]} 21. Bxe4 {[%emt 0:00:33]}
g6 {[%emt 0:00:07]} 22. b4 {[%emt 0:54:25]} axb4 {[%emt 0:51:23]} 23. axb4 {
[%emt 0:00:05]} Kg7 {[%emt 0:04:41]} 24. Qa4 {[%emt 0:07:29]} Ne7 {[%emt 0:03:
58]} 25. Qb5 {[%emt 0:03:25]} Qc7 {[%emt 0:09:46]} 26. Ra1 {[%emt 0:05:58]} Nf5
{[%emt 0:01:07]} 27. Bg2 {[%emt 0:02:12]} Nd6 {[%emt 0:01:56]} 28. Qd5 {
[%emt 0:02:00]} Rcd8 {[%emt 0:06:11]} 29. Ra6 {[%emt 0:05:39]} Re6 {[%emt 0:02:
56]} 30. Rea1 {[%emt 0:04:02]} Nc8 {[%emt 0:00:48]} 31. Qb5 {[%emt 0:01:42]} f5
{[%emt 0:04:04]} 32. c5 {[%emt 0:04:18]} Kf6 {[%emt 0:01:16]} 33. cxb6 {
[%emt 0:03:00]} Nxb6 {[%emt 0:01:29]} *

[Event "25th European Club Cup Women 2021"]
[Site "Struga"]
[Date "2021.09.22"]
[Round "5.3"]
[White "Urh, Zala"]
[Black "Dordzhieva, Dinara"]
[Result "0-1"]
[ECO "D38"]
[WhiteElo "2234"]
[BlackElo "2303"]
[Annotator "NA"]
[PlyCount "56"]
[EventDate "2021.09.18"]
[EventType "team-tourn"]
[EventCountry "MKD"]
[SourceTitle "playchess.com"]
[Source "ChessBase"]
[SourceQuality "1"]
[TimeControl "40/5400+30:1800+30"]

1. d4 {[%emt 0:00:09]} Nf6 {[%emt 0:00:45]} 2. c4 {[%emt 0:00:08]} e6 {[%emt 0:
00:21]} 3. Nf3 {[%emt 0:00:07]} d5 {[%emt 0:00:07]} 4. Nc3 {[%emt 0:00:06]} Bb4
{[%emt 0:00:59]} 5. Qa4+ {[%emt 0:00:58]} Nc6 {[%emt 0:00:10]} 6. e3 {[%emt 0:
00:18]} O-O {[%emt 0:00:36]} 7. Qc2 {[%emt 0:00:29]} a6 {[%emt 0:03:46]} 8. Bd2
{[%emt 0:04:09]} dxc4 {[%emt 0:06:27]} 9. Bxc4 {[%emt 0:00:11]} Bd6 {[%emt 0:
00:17]} 10. O-O {[%emt 0:04:20]} e5 {[%emt 0:01:29]} 11. h3 {[%emt 0:02:26]}
exd4 {[%emt 0:12:14]} 12. exd4 {[%emt 0:00:30]} b5 {[%emt 0:00:53]} 13. Be2 {
[%emt 0:02:40]} Nb4 {[%emt 0:01:29]} 14. Qd1 {[%emt 0:02:57]} Bf5 {[%emt 0:11:
49]} 15. a3 {[%emt 0:09:31]} Nbd5 {[%emt 0:01:48]} 16. Ne5 {[%emt 0:01:04]}
Nxc3 {[%emt 0:11:04]} 17. Bxc3 {[%emt 0:04:09]} Nd5 {[%emt 0:04:06]} 18. Ba5 {
[%emt 0:03:03]} Qg5 {[%emt 0:07:36]} 19. Bf3 {[%emt 0:11:34]} Be6 {[%emt 0:01:
21]} 20. Rc1 {[%emt 0:04:31]} Rac8 {[%emt 0:13:29]} 21. Re1 {[%emt 0:12:36]}
Nf4 {[%emt 0:04:45]} 22. Kh1 {[%emt 0:03:47]} Qh4 {[%emt 0:01:52]} 23. Kg1 {
[%emt 0:08:16]} Rfd8 {[%emt 0:01:13]} 24. d5 {[%emt 0:10:23]} Bf5 {[%emt 0:07:
59]} 25. Bc3 {[%emt 0:02:39]} Bc5 {[%emt 0:01:25]} 26. Qd2 {[%emt 0:02:47]} f6
{[%emt 0:01:28]} 27. Nc6 {[%emt 0:03:51]} Nxh3+ {[%emt 0:00:29]} 28. Kf1 {
[%emt 0:02:33]} Bd3+ {[%emt 0:00:23]} 0-1

[Event "25th European Club Cup Women 2021"]
[Site "Struga"]
[Date "2021.09.22"]
[Round "5.4"]
[White "Trippold, Denise"]
[Black "Janzelj, Lara"]
[Result "1/2-1/2"]
[ECO "A55"]
[WhiteElo "2046"]
[BlackElo "2186"]
[Annotator "NA"]
[PlyCount "83"]
[EventDate "2021.09.18"]
[EventType "team-tourn"]
[EventCountry "MKD"]
[SourceTitle "playchess.com"]
[Source "ChessBase"]
[SourceQuality "1"]
[TimeControl "40/5400+30:1800+30"]

1. c4 {[%emt 0:00:08]} Nf6 {[%emt 0:00:18]} 2. d4 {[%emt 0:00:31]} d6 {[%emt 0:
00:21]} 3. Nf3 {[%emt 0:00:52]} c6 {[%emt 0:00:42]} 4. Nc3 {[%emt 0:02:02]}
Nbd7 {[%emt 0:00:20]} 5. e4 {[%emt 0:01:36]} e5 {[%emt 0:00:11]} 6. d5 {
[%emt 0:12:48]} Be7 {[%emt 0:00:31]} 7. Be2 {[%emt 0:00:49]} O-O {[%emt 0:00:
43]} 8. O-O {[%emt 0:01:58]} Nc5 {[%emt 0:06:18]} 9. Qc2 {[%emt 0:00:56]} a5 {
[%emt 0:00:26]} 10. Be3 {[%emt 0:10:34]} Qc7 {[%emt 0:03:55]} 11. Nd2 {[%emt 0:
12:20]} Ng4 {[%emt 0:08:55]} 12. Bxg4 {[%emt 0:01:38]} Bxg4 {[%emt 0:00:06]}
13. a3 {[%emt 0:02:22]} Na6 {[%emt 0:03:51]} 14. Rfc1 {[%emt 0:16:08]} f5 {
[%emt 0:05:55]} 15. exf5 {[%emt 0:07:57]} Bxf5 {[%emt 0:00:30]} 16. Nde4 {
[%emt 0:00:09]} Qd7 {[%emt 0:04:51]} 17. Rd1 {[%emt 0:02:20]} c5 {[%emt 0:03:
15]} 18. f3 {[%emt 0:05:47]} Qe8 {[%emt 0:01:25]} 19. Qe2 {[%emt 0:08:11]} Qg6
{[%emt 0:03:12]} 20. Bd2 {[%emt 0:00:59]} Rf7 {[%emt 0:03:50]} 21. Na4 {
[%emt 0:03:24]} Bd8 {[%emt 0:03:33]} 22. Nac3 {[%emt 0:02:53]} Nc7 {[%emt 0:03:
14]} 23. b3 {[%emt 0:02:11]} Ne8 {[%emt 0:05:17]} 24. b4 {[%emt 0:02:40]} axb4
{[%emt 0:08:01]} 25. axb4 {[%emt 0:00:02]} Rxa1 {[%emt 0:00:07]} 26. Rxa1 {
[%emt 0:00:00]} cxb4 {[%emt 0:00:09]} 27. Ra8 {[%emt 0:01:24]} Rd7 {[%emt 0:09:
16]} 28. Na4 {[%emt 0:00:33]} Bxe4 {[%emt 0:03:26]} 29. fxe4 {[%emt 0:00:15]}
b3 {[%emt 0:01:12]} 30. Bc3 {[%emt 0:00:37]} Kf7 {[%emt 0:00:56]} 31. c5 {
[%emt 0:01:00]} dxc5 {[%emt 0:04:22]} 32. Bxe5 {[%emt 0:00:15]} Re7 {[%emt 0:
01:55]} 33. Qf2+ {[%emt 0:00:55]} Kg8 {[%emt 0:00:11]} 34. Rxd8 {[%emt 0:00:27]
} Rxe5 {[%emt 0:00:06]} 35. d6 {[%emt 0:00:37]} Qg5 {[%emt 0:01:16]} 36. Rc8 {
[%emt 0:00:33]} Qc1+ {[%emt 0:00:21]} 37. Qf1 {[%emt 0:00:01]} Qd2 {[%emt 0:03:
57]} 38. Qc4+ {[%emt 0:00:41]} Kf8 {[%emt 0:03:27]} 39. Qf1+ {[%emt 0:00:12]}
Kg8 {[%emt 0:00:06]} 40. Qc4+ {[%emt 0:00:00]} Kf8 {[%emt 0:00:00]} 41. Qf1+ {
[%emt 0:09:23]} Kg8 {[%emt 0:01:29]} 42. Qc4+ 1/2-1/2

[Event "25th European Club Cup Women 2021"]
[Site "Struga"]
[Date "2021.09.22"]
[Round "5.6"]
[White "Dzagnidze, Nana"]
[Black "Radeva, Viktoria"]
[Result "1-0"]
[ECO "C07"]
[WhiteElo "2525"]
[BlackElo "2350"]
[Annotator "ChessBase"]
[PlyCount "89"]
[EventDate "2021.09.18"]
[EventType "team-tourn"]
[EventCountry "MKD"]
[SourceTitle "playchess.com"]
[Source "ChessBase"]
[SourceQuality "1"]
[TimeControl "40/5400+30:1800+30"]

1. e4 {[%emt 0:00:04]} e6 {[%emt 0:03:53]} 2. d4 {[%emt 0:00:33]} d5 {[%emt 0:
02:10]} 3. Nd2 {[%emt 0:01:19]} c5 {[%emt 0:00:19]} 4. Ngf3 {[%emt 0:00:20]}
cxd4 {[%emt 0:00:27]} 5. exd5 {[%emt 0:00:26]} Qxd5 {[%emt 0:00:10]} 6. Bc4 {
[%emt 0:00:32]} Qd6 {[%emt 0:00:08]} 7. O-O {[%emt 0:00:12]} Nf6 {[%emt 0:00:
06]} 8. Nb3 {[%emt 0:00:18]} Nc6 {[%emt 0:00:05]} 9. Nbxd4 {[%emt 0:00:57]}
Nxd4 {[%emt 0:00:06]} 10. Nxd4 {[%emt 0:00:04]} Be7 {[%emt 0:00:16]} 11. c3 {
[%emt 0:09:52]} O-O {[%emt 0:01:12]} 12. Qf3 {[%emt 0:00:20]} Qb6 {[%emt 0:05:
17]} 13. Bb3 {[%emt 0:09:21]} Bd7 {[%emt 0:00:23]} 14. Re1 {[%emt 0:00:15]} a5
{[%emt 0:10:21]} 15. Bg5 {[%emt 0:18:29]} Rfe8 {[%emt 0:13:32]} 16. a4 {
[%emt 0:06:27]} Rac8 {[%emt 0:09:44]} 17. h3 {[%emt 0:03:07]} h6 {[%emt 0:15:
07]} 18. Bh4 {[%emt 0:00:33]} Bd8 {[%emt 0:08:05]} 19. Qe2 {[%emt 0:04:44]} Rc5
{[%emt 0:10:35]} 20. Bc2 {[%emt 0:16:30]} e5 {[%emt 0:03:01]} 21. Nb5 {[%emt 0:
01:50]} Bxb5 {[%emt 0:05:01]} 22. axb5 {[%emt 0:00:05]} Rxb5 {[%emt 0:03:05]}
23. b4 {[%emt 0:01:08]} Rd5 {[%emt 0:02:25]} 24. Bb3 {[%emt 0:01:28]} Rd6 {
[%emt 0:01:33]} 25. Rxa5 {[%emt 0:00:08]} Nd5 {[%emt 0:02:38]} 26. Rxd5 {
[%emt 0:03:20]} Rxd5 {[%emt 0:00:31]} 27. Bxd5 {[%emt 0:00:04]} Bxh4 {[%emt 0:
00:03]} 28. Bxf7+ {[%emt 0:00:11]} Kxf7 {[%emt 0:00:16]} 29. Qh5+ {[%emt 0:00:
23]} Qg6 {[%emt 0:01:09]} 30. Qxh4 {[%emt 0:00:04]} Kg8 {[%emt 0:00:18]} 31.
Qc4+ {[%emt 0:01:03]} Qf7 {[%emt 0:00:23]} 32. Qe4 {[%emt 0:01:25]} Kf8 {
[%emt 0:01:15]} 33. Re3 {[%emt 0:00:54]} Re6 {[%emt 0:02:47]} 34. f4 {[%emt 0:
00:59]} exf4 {[%emt 0:00:27]} 35. Qxe6 {[%emt 0:00:05]} fxe3 {[%emt 0:00:02]}
36. Qc8+ {[%emt 0:00:08]} Qe8 {[%emt 0:00:18]} 37. Qxe8+ {[%emt 0:00:07]} Kxe8
{[%emt 0:00:02]} 38. Kf1 {[%emt 0:00:06]} Ke7 {[%emt 0:00:15]} 39. Ke2 {
[%emt 0:00:06]} Ke6 {[%emt 0:00:19]} 40. Kxe3 {[%emt 0:00:00]} Kd5 {[%emt 0:00:
00]} 41. Kd3 {[%emt 0:00:23]} b5 {[%emt 0:00:30]} 42. h4 {[%emt 0:00:33]} h5 {
[%emt 0:03:03]} 43. g3 {[%emt 0:00:15]} g6 {[%emt 0:00:05]} 44. c4+ {[%emt 0:
00:06]} bxc4+ {[%emt 0:00:02]} 45. Kc3 {[%emt 0:00:04]} 1-0